[Event "Titled Tuesday Blitz January 31 Early 2023"]
[White "Bartel, Mateusz"]
[Black "Lamaze, Simon"]
[WhiteFideId "1112635"]
[BlackFideId "36069264"]
[WhiteElo "2609"]
[BlackElo "2363"]
[Result "1-0"]
[Round "05"]
[TimeControl "180+2"]
[Date "2023.01.31"]
[WhiteClock "0:00:54"]
[BlackClock "0:00:04"]

1. Nf3 {[%clk 0:02:54]}  g6 {[%clk 0:02:58]} 2. e4 {[%clk 0:02:54]}  d6 {[%clk 0:02:54]} 3. d4 {[%clk 0:02:54]}  Bg7 {[%clk 0:02:49]} 4. Nc3 {[%clk 0:02:54]}  a6 {[%clk 0:02:48]} 5. h3 {[%clk 0:02:52]}  h6 {[%clk 0:02:42]} 6. Be3 {[%clk 0:02:52]}  Nd7 {[%clk 0:02:40]} 7. a4 {[%clk 0:02:51]}  b6 {[%clk 0:02:36]} 8. Ne2 {[%clk 0:02:47]}  Bb7 {[%clk 0:02:34]} 9. Ng3 {[%clk 0:02:47]}  e6 {[%clk 0:02:33]} 10. Qd2 {[%clk 0:02:46]}  Ne7 {[%clk 0:02:31]} 11. Bd3 {[%clk 0:02:45]}  Kf8 {[%clk 0:02:17]} 12. c3 {[%clk 0:02:44]}  Kg8 {[%clk 0:02:14]} 13. h4 {[%clk 0:02:42]}  e5 {[%clk 0:02:13]} 14. h5 {[%clk 0:02:40]}  g5 {[%clk 0:02:11]} 15. Nh2 {[%clk 0:02:38]}  Nf6 {[%clk 0:02:05]} 16. f3 {[%clk 0:02:38]}  c5 {[%clk 0:02:03]} 17. dxe5 {[%clk 0:02:29]}  dxe5 {[%clk 0:02:03]} 18. Ng4 {[%clk 0:02:25]}  Nxg4 {[%clk 0:02:00]} 19. fxg4 {[%clk 0:02:26]}  Qd7 {[%clk 0:01:56]} 20. Qe2 {[%clk 0:02:21]}  Kh7 {[%clk 0:01:52]} 21. Rf1 {[%clk 0:02:19]}  f6 {[%clk 0:01:49]} 22. Bc4 {[%clk 0:02:14]}  Rhd8 {[%clk 0:01:42]} 23. Kf2 {[%clk 0:02:14]}  Bc6 {[%clk 0:01:13]} 24. Rfd1 {[%clk 0:02:09]}  Qe8 {[%clk 0:01:01]} 25. Rxd8 {[%clk 0:01:55]}  Rxd8 {[%clk 0:01:02]} 26. Bxa6 {[%clk 0:01:55]}  Bxa4 {[%clk 0:01:03]} 27. Bc4 {[%clk 0:01:55]}  Bc6 {[%clk 0:01:01]} 28. Ra7 {[%clk 0:01:54]}  Rd7 {[%clk 0:01:00]} 29. Ra6 {[%clk 0:01:52]}  Qd8 {[%clk 0:00:49]} 30. b4 {[%clk 0:01:45]}  Bb7 {[%clk 0:00:45]} 31. Ra4 {[%clk 0:01:33]}  Bf8 {[%clk 0:00:38]} 32. b5 {[%clk 0:01:31]}  Nc8 {[%clk 0:00:34]} 33. Be6 {[%clk 0:01:25]}  Rd6 {[%clk 0:00:30]} 34. Ba2 {[%clk 0:01:17]}  Rd7 {[%clk 0:00:10]} 35. Qc4 {[%clk 0:01:14]}  Bg7 {[%clk 0:00:11]} 36. Nf5 {[%clk 0:01:11]}  Nd6 {[%clk 0:00:10]} 37. Nxd6 {[%clk 0:01:08]}  Rxd6 {[%clk 0:00:11]} 38. Qf7 {[%clk 0:01:04]}  Qd7 {[%clk 0:00:08]} 39. Qxd7 {[%clk 0:00:59]}  Rxd7 {[%clk 0:00:09]} 40. Ra7 {[%clk 0:00:57]}  c4 {[%clk 0:00:02]} 41. Bxc4 {[%clk 0:00:55]}  Kh8 {[%clk 0:00:03]} 42. Bd5 {[%clk 0:00:54]}  Rxd5 {[%clk 0:00:03]} 43. exd5 {[%clk 0:00:54]}  Bxd5 {[%clk 0:00:04]} 44. Bxb6 {[%clk 0:00:54]}  f5 {[%clk 0:00:04]} 1-0


[Site "https://www.chess.com"]

[Event "Titled Tuesday Blitz January 31 Early 2023"]
[White "Bacrot, Etienne"]
[Black "Guliev, Logman"]
[WhiteFideId "605506"]
[BlackFideId "13400061"]
[WhiteElo "2667"]
[BlackElo "2250"]
[Result "1-0"]
[Round "05"]
[TimeControl "180+2"]
[Date "2023.01.31"]
[WhiteClock "0:00:08"]
[BlackClock "0:00:02"]

1. e4 {[%clk 0:03:00]}  c5 {[%clk 0:02:58]} 2. Nf3 {[%clk 0:03:00]}  d6 {[%clk 0:02:57]} 3. Bc4 {[%clk 0:02:59]}  e6 {[%clk 0:02:54]} 4. O-O {[%clk 0:02:58]}  Nf6 {[%clk 0:02:55]} 5. Re1 {[%clk 0:02:58]}  Be7 {[%clk 0:02:55]} 6. d4 {[%clk 0:02:57]}  cxd4 {[%clk 0:02:54]} 7. Nxd4 {[%clk 0:02:57]}  O-O {[%clk 0:02:54]} 8. Nc3 {[%clk 0:02:57]}  a6 {[%clk 0:02:54]} 9. a4 {[%clk 0:02:57]}  Qc7 {[%clk 0:02:52]} 10. Bb3 {[%clk 0:02:57]}  Nc6 {[%clk 0:02:52]} 11. Be3 {[%clk 0:02:54]}  Bd7 {[%clk 0:02:52]} 12. h3 {[%clk 0:02:39]}  Na5 {[%clk 0:02:45]} 13. Ba2 {[%clk 0:02:38]}  Rac8 {[%clk 0:02:42]} 14. Qd3 {[%clk 0:02:23]}  Nc4 {[%clk 0:02:35]} 15. Bc1 {[%clk 0:02:16]}  Rfd8 {[%clk 0:02:23]} 16. Bb3 {[%clk 0:02:15]}  Be8 {[%clk 0:02:17]} 17. Qg3 {[%clk 0:02:11]}  Kh8 {[%clk 0:02:15]} 18. a5 {[%clk 0:01:56]}  Nh5 {[%clk 0:01:42]} 19. Qf3 {[%clk 0:01:54]}  Nf6 {[%clk 0:01:40]} 20. Qg3 {[%clk 0:01:48]}  Nh5 {[%clk 0:01:36]} 21. Qd3 {[%clk 0:01:45]}  Nf6 {[%clk 0:01:12]} 22. Bxc4 {[%clk 0:01:36]}  Qxc4 {[%clk 0:01:12]} 23. Be3 {[%clk 0:01:28]}  Qxd3 {[%clk 0:00:56]} 24. cxd3 {[%clk 0:01:29]}  d5 {[%clk 0:00:56]} 25. e5 {[%clk 0:01:28]}  Nd7 {[%clk 0:00:55]} 26. Nf3 {[%clk 0:01:18]}  Nc5 {[%clk 0:00:43]} 27. Rad1 {[%clk 0:00:57]}  Nb3 {[%clk 0:00:40]} 28. Bb6 {[%clk 0:00:57]}  Rd7 {[%clk 0:00:37]} 29. Na2 {[%clk 0:00:23]}  Bd8 {[%clk 0:00:29]} 30. Nd2 {[%clk 0:00:11]}  Nxa5 {[%clk 0:00:23]} 31. Bxd8 {[%clk 0:00:12]}  Rdxd8 {[%clk 0:00:20]} 32. Rc1 {[%clk 0:00:10]}  Nb3 {[%clk 0:00:19]} 33. Nxb3 {[%clk 0:00:10]}  Bb5 {[%clk 0:00:13]} 34. Rxc8 {[%clk 0:00:06]}  Rxc8 {[%clk 0:00:12]} 35. Rc1 {[%clk 0:00:07]}  Rc6 {[%clk 0:00:05]} 36. Rxc6 {[%clk 0:00:07]}  bxc6 {[%clk 0:00:05]} 37. Nc5 {[%clk 0:00:07]}  a5 {[%clk 0:00:05]} 38. f4 {[%clk 0:00:07]}  d4 {[%clk 0:00:04]} 39. Kf2 {[%clk 0:00:07]}  a4 {[%clk 0:00:04]} 40. Nc1 {[%clk 0:00:08]}  Kg8 {[%clk 0:00:02]} 41. Ne2 {[%clk 0:00:07]}  Kf8 {[%clk 0:00:02]} 42. Nxd4 {[%clk 0:00:08]} 1-0


[Site "https://www.chess.com"]

[Event "Titled Tuesday Blitz January 31 Early 2023"]
[White "Ordekalog"]
[Black "Fier, Alexandr"]
[BlackFideId "2107139"]
[WhiteElo "2589"]
[BlackElo "2589"]
[Result "0-1"]
[Round "05"]
[TimeControl "180+2"]
[Date "2023.01.31"]
[WhiteClock "0:00:19"]
[BlackClock "0:01:56"]

1. d4 {[%clk 0:03:00]}  Nf6 {[%clk 0:02:59]} 2. c4 {[%clk 0:03:00]}  c5 {[%clk 0:03:00]} 3. e3 {[%clk 0:02:59]}  cxd4 {[%clk 0:03:00]} 4. exd4 {[%clk 0:03:00]}  d5 {[%clk 0:03:00]} 5. Nc3 {[%clk 0:02:59]}  Nc6 {[%clk 0:03:01]} 6. Nf3 {[%clk 0:02:59]}  a6 {[%clk 0:03:01]} 7. cxd5 {[%clk 0:02:56]}  Nxd5 {[%clk 0:03:02]} 8. Bd3 {[%clk 0:02:55]}  Bg4 {[%clk 0:03:02]} 9. O-O {[%clk 0:02:54]}  e6 {[%clk 0:03:02]} 10. Be4 {[%clk 0:02:53]}  Nf6 {[%clk 0:03:00]} 11. Bxc6+ {[%clk 0:02:51]}  bxc6 {[%clk 0:03:00]} 12. h3 {[%clk 0:02:52]}  Bh5 {[%clk 0:03:00]} 13. g4 {[%clk 0:02:51]}  Bg6 {[%clk 0:02:59]} 14. Qa4 {[%clk 0:02:51]}  Qb6 {[%clk 0:02:47]} 15. Ne5 {[%clk 0:02:48]}  Rc8 {[%clk 0:02:47]} 16. Be3 {[%clk 0:02:44]}  Qb7 {[%clk 0:02:44]} 17. f4 {[%clk 0:02:41]}  h5 {[%clk 0:02:36]} 18. f5 {[%clk 0:02:39]}  exf5 {[%clk 0:02:32]} 19. gxf5 {[%clk 0:02:39]}  Bh7 {[%clk 0:02:32]} 20. Rae1 {[%clk 0:02:36]}  Be7 {[%clk 0:02:32]} 21. d5 {[%clk 0:02:18]}  O-O {[%clk 0:02:29]} 22. Nxc6 {[%clk 0:02:03]}  Bd6 {[%clk 0:02:29]} 23. Bd4 {[%clk 0:01:55]}  Nxd5 {[%clk 0:02:24]} 24. Nxd5 {[%clk 0:01:17]}  Rxc6 {[%clk 0:02:23]} 25. Bxg7 {[%clk 0:01:12]}  Kxg7 {[%clk 0:02:09]} 26. Re2 {[%clk 0:00:55]}  Bc5+ {[%clk 0:02:05]} 27. Kh1 {[%clk 0:00:51]}  Rd6 {[%clk 0:02:05]} 28. Rg2+ {[%clk 0:00:51]}  Kh8 {[%clk 0:02:05]} 29. Nf4 {[%clk 0:00:35]}  Rg8 {[%clk 0:02:06]} 30. Qc4 {[%clk 0:00:28]}  Rxg2 {[%clk 0:02:05]} 31. Nxg2 {[%clk 0:00:27]}  Qd5 {[%clk 0:01:59]} 32. Qc3+ {[%clk 0:00:25]}  Qd4 {[%clk 0:01:58]} 33. Qg3 {[%clk 0:00:21]}  Bxf5 {[%clk 0:01:56]} 34. Rxf5 {[%clk 0:00:19]}  Qg1# {[%clk 0:01:56]} 0-1


[Site "https://www.chess.com"]

[Event "Titled Tuesday Blitz January 31 Early 2023"]
[White "Dubov, Daniil"]
[Black "Ashraf, Artin"]
[WhiteFideId "24126055"]
[BlackFideId "22514805"]
[WhiteElo "2708"]
[BlackElo "2314"]
[Result "1-0"]
[Round "05"]
[TimeControl "180+2"]
[Date "2023.01.31"]
[WhiteClock "0:00:23"]
[BlackClock "0:00:11"]

1. d4 {[%clk 0:03:00]}  Nf6 {[%clk 0:02:56]} 2. Nf3 {[%clk 0:03:01]}  e6 {[%clk 0:02:53]} 3. Bg5 {[%clk 0:03:00]}  h6 {[%clk 0:02:51]} 4. Bxf6 {[%clk 0:03:00]}  Qxf6 {[%clk 0:02:52]} 5. e4 {[%clk 0:03:01]}  d5 {[%clk 0:02:44]} 6. Nbd2 {[%clk 0:02:59]}  c5 {[%clk 0:02:42]} 7. Bb5+ {[%clk 0:02:58]}  Nc6 {[%clk 0:02:40]} 8. O-O {[%clk 0:02:39]}  cxd4 {[%clk 0:02:35]} 9. Re1 {[%clk 0:02:38]}  Be7 {[%clk 0:02:16]} 10. Qe2 {[%clk 0:01:59]}  a6 {[%clk 0:02:07]} 11. e5 {[%clk 0:01:57]}  Qf4 {[%clk 0:01:58]} 12. Bd3 {[%clk 0:01:52]}  Bd7 {[%clk 0:01:33]} 13. g3 {[%clk 0:01:49]}  Qg4 {[%clk 0:01:33]} 14. Kg2 {[%clk 0:01:43]}  Qh5 {[%clk 0:01:19]} 15. Nb3 {[%clk 0:01:28]}  O-O {[%clk 0:01:11]} 16. Rad1 {[%clk 0:01:21]}  f6 {[%clk 0:00:56]} 17. exf6 {[%clk 0:01:12]}  Rxf6 {[%clk 0:00:53]} 18. Nfxd4 {[%clk 0:01:10]}  Qf7 {[%clk 0:00:51]} 19. f4 {[%clk 0:00:53]}  Rf8 {[%clk 0:00:40]} 20. Nxc6 {[%clk 0:00:38]}  Bxc6 {[%clk 0:00:36]} 21. Nd4 {[%clk 0:00:38]}  Bc5 {[%clk 0:00:16]} 22. Nxc6 {[%clk 0:00:27]}  bxc6 {[%clk 0:00:17]} 23. Qg4 {[%clk 0:00:27]}  a5 {[%clk 0:00:14]} 24. Re2 {[%clk 0:00:27]}  Kh8 {[%clk 0:00:13]} 25. Rde1 {[%clk 0:00:26]}  Bd6 {[%clk 0:00:13]} 26. Rxe6 {[%clk 0:00:25]}  Rb8 {[%clk 0:00:10]} 27. Rxf6 {[%clk 0:00:23]}  Qxf6 {[%clk 0:00:11]} 28. Re6 {[%clk 0:00:23]} 1-0


[Site "https://www.chess.com"]

[Event "Titled Tuesday Blitz January 31 Early 2023"]
[White "Martinez Ramirez, Lennis"]
[Black "Kozak, Adam"]
[WhiteFideId "3509079"]
[BlackFideId "753246"]
[WhiteElo "2426"]
[BlackElo "2572"]
[Result "0-1"]
[Round "05"]
[TimeControl "180+2"]
[Date "2023.01.31"]
[WhiteClock "0:01:44"]
[BlackClock "0:02:17"]

1. c4 {[%clk 0:03:00]}  e5 {[%clk 0:02:48]} 2. Nc3 {[%clk 0:03:00]}  Nf6 {[%clk 0:02:48]} 3. g3 {[%clk 0:03:00]}  c6 {[%clk 0:02:42]} 4. d4 {[%clk 0:02:57]}  exd4 {[%clk 0:02:42]} 5. Qxd4 {[%clk 0:02:57]}  d5 {[%clk 0:02:42]} 6. cxd5 {[%clk 0:02:58]}  cxd5 {[%clk 0:02:42]} 7. Bg5 {[%clk 0:02:33]}  Be7 {[%clk 0:02:40]} 8. Rd1 {[%clk 0:02:31]}  Be6 {[%clk 0:02:38]} 9. Bg2 {[%clk 0:02:30]}  Nc6 {[%clk 0:02:38]} 10. Qa4 {[%clk 0:02:30]}  O-O {[%clk 0:02:38]} 11. Nf3 {[%clk 0:02:29]}  h6 {[%clk 0:02:37]} 12. Bf4 {[%clk 0:02:05]}  Qb6 {[%clk 0:02:34]} 13. Qb5 {[%clk 0:01:50]}  Ne4 {[%clk 0:02:18]} 14. Qxc6 {[%clk 0:01:44]}  bxc6 {[%clk 0:02:17]} 0-1


[Site "https://www.chess.com"]

[Event "Titled Tuesday Blitz January 31 Early 2023"]
[White "Grandelius, Nils"]
[Black "Sipila, Vilka"]
[WhiteFideId "1710400"]
[BlackFideId "505455"]
[WhiteElo "2664"]
[BlackElo "2427"]
[Result "1-0"]
[Round "05"]
[TimeControl "180+2"]
[Date "2023.01.31"]
[WhiteClock "0:00:08"]
[BlackClock "0:00:05"]

1. Nf3 {[%clk 0:03:00]}  f5 {[%clk 0:02:54]} 2. d3 {[%clk 0:02:57]}  d6 {[%clk 0:02:53]} 3. e4 {[%clk 0:02:56]}  e5 {[%clk 0:02:53]} 4. exf5 {[%clk 0:02:54]}  Bxf5 {[%clk 0:02:54]} 5. d4 {[%clk 0:02:54]}  e4 {[%clk 0:02:52]} 6. Nfd2 {[%clk 0:02:48]}  d5 {[%clk 0:02:51]} 7. c4 {[%clk 0:02:49]}  Nc6 {[%clk 0:02:44]} 8. Nb3 {[%clk 0:02:48]}  Bb4+ {[%clk 0:02:41]} 9. Nc3 {[%clk 0:02:48]}  Nf6 {[%clk 0:02:41]} 10. Bg5 {[%clk 0:02:44]}  O-O {[%clk 0:02:34]} 11. Be2 {[%clk 0:02:36]}  h6 {[%clk 0:02:32]} 12. Bh4 {[%clk 0:02:28]}  a5 {[%clk 0:02:14]} 13. a3 {[%clk 0:02:26]}  Be7 {[%clk 0:01:55]} 14. Bxf6 {[%clk 0:02:21]}  Bxf6 {[%clk 0:01:56]} 15. Nxd5 {[%clk 0:02:22]}  a4 {[%clk 0:01:56]} 16. Nc5 {[%clk 0:02:09]}  Bxd4 {[%clk 0:01:52]} 17. Nxa4 {[%clk 0:02:03]}  Qh4 {[%clk 0:01:31]} 18. O-O {[%clk 0:01:58]}  Be5 {[%clk 0:01:26]} 19. g3 {[%clk 0:01:56]}  Qh3 {[%clk 0:01:26]} 20. Nac3 {[%clk 0:01:47]}  Nd4 {[%clk 0:01:26]} 21. Ne7+ {[%clk 0:01:40]}  Kh8 {[%clk 0:01:24]} 22. Nxf5 {[%clk 0:01:41]}  Qxf5 {[%clk 0:01:18]} 23. Bg4 {[%clk 0:01:23]}  Qg6 {[%clk 0:01:16]} 24. Bh5 {[%clk 0:01:10]}  Qh7 {[%clk 0:01:11]} 25. Qg4 {[%clk 0:01:07]}  Nf3+ {[%clk 0:01:08]} 26. Kg2 {[%clk 0:01:08]}  Nd2 {[%clk 0:00:56]} 27. Rfe1 {[%clk 0:00:45]}  Bd4 {[%clk 0:00:53]} 28. Re2 {[%clk 0:00:42]}  Bxc3 {[%clk 0:00:41]} 29. bxc3 {[%clk 0:00:41]}  e3 {[%clk 0:00:40]} 30. Bg6 {[%clk 0:00:38]}  Qg8 {[%clk 0:00:39]} 31. Rxe3 {[%clk 0:00:34]}  Nxc4 {[%clk 0:00:33]} 32. Re7 {[%clk 0:00:33]}  Ra5 {[%clk 0:00:27]} 33. Rae1 {[%clk 0:00:29]}  Rg5 {[%clk 0:00:26]} 34. Qe6 {[%clk 0:00:27]}  Nd6 {[%clk 0:00:09]} 35. h4 {[%clk 0:00:24]}  Qxe6 {[%clk 0:00:05]} 36. R1xe6 {[%clk 0:00:22]}  Rc5 {[%clk 0:00:06]} 37. Re3 {[%clk 0:00:19]}  Kg8 {[%clk 0:00:05]} 38. h5 {[%clk 0:00:19]}  Rf6 {[%clk 0:00:05]} 39. Rd7 {[%clk 0:00:18]}  Rf8 {[%clk 0:00:03]} 40. Ree7 {[%clk 0:00:17]}  Nf5 {[%clk 0:00:04]} 41. Bxf5 {[%clk 0:00:16]}  Rfxf5 {[%clk 0:00:05]} 42. Rxg7+ {[%clk 0:00:16]}  Kf8 {[%clk 0:00:05]} 43. Rh7 {[%clk 0:00:16]}  Ke8 {[%clk 0:00:05]} 44. Rxc7 {[%clk 0:00:16]}  Rxc7 {[%clk 0:00:05]} 45. Rxc7 {[%clk 0:00:17]}  Rxh5 {[%clk 0:00:06]} 46. Rxb7 {[%clk 0:00:17]}  Ra5 {[%clk 0:00:07]} 47. Rh7 {[%clk 0:00:16]}  Ra6 {[%clk 0:00:06]} 48. c4 {[%clk 0:00:16]}  Kf8 {[%clk 0:00:05]} 49. c5 {[%clk 0:00:13]}  Kg8 {[%clk 0:00:05]} 50. Rd7 {[%clk 0:00:13]}  Kf8 {[%clk 0:00:04]} 51. Rd6 {[%clk 0:00:13]}  Rxa3 {[%clk 0:00:04]} 52. Rxh6 {[%clk 0:00:13]}  Rc3 {[%clk 0:00:04]} 53. Rh5 {[%clk 0:00:13]}  Kf7 {[%clk 0:00:04]} 54. g4 {[%clk 0:00:14]}  Kg6 {[%clk 0:00:05]} 55. f3 {[%clk 0:00:14]}  Rc2+ {[%clk 0:00:05]} 56. Kg3 {[%clk 0:00:15]}  Rc1 {[%clk 0:00:06]} 57. Rd5 {[%clk 0:00:15]}  Rc4 {[%clk 0:00:07]} 58. Rd6+ {[%clk 0:00:15]}  Kf7 {[%clk 0:00:07]} 59. c6 {[%clk 0:00:16]}  Ke7 {[%clk 0:00:07]} 60. Rh6 {[%clk 0:00:14]}  Kf7 {[%clk 0:00:08]} 61. g5 {[%clk 0:00:15]}  Rc1 {[%clk 0:00:07]} 62. Kg4 {[%clk 0:00:13]}  Kg7 {[%clk 0:00:07]} 63. f4 {[%clk 0:00:12]}  Rc4 {[%clk 0:00:07]} 64. Rd6 {[%clk 0:00:12]}  Kf7 {[%clk 0:00:07]} 65. g6+ {[%clk 0:00:10]}  Kg7 {[%clk 0:00:08]} 66. Kg5 {[%clk 0:00:10]}  Kg8 {[%clk 0:00:06]} 67. Rd8+ {[%clk 0:00:08]}  Kg7 {[%clk 0:00:06]} 68. Rd7+ {[%clk 0:00:09]}  Kg8 {[%clk 0:00:05]} 69. Kh6 {[%clk 0:00:08]} 1-0


[Site "https://www.chess.com"]

[Event "Titled Tuesday Blitz January 31 Early 2023"]
[White "Ozen, Bahadir"]
[Black "Atakhan, Abtin"]
[WhiteFideId "6337058"]
[BlackFideId "22502203"]
[WhiteElo "2369"]
[BlackElo "2422"]
[Result "1/2-1/2"]
[Round "05"]
[TimeControl "180+2"]
[Date "2023.01.31"]
[WhiteClock "0:00:08"]
[BlackClock "0:00:05"]

1. g3 {[%clk 0:03:00]}  Nf6 {[%clk 0:01:37]} 2. Bg2 {[%clk 0:02:42]}  d5 {[%clk 0:01:35]} 3. Nf3 {[%clk 0:02:41]}  g6 {[%clk 0:01:34]} 4. c4 {[%clk 0:02:39]}  dxc4 {[%clk 0:01:32]} 5. Qa4+ {[%clk 0:02:32]}  c6 {[%clk 0:01:27]} 6. Qxc4 {[%clk 0:02:32]}  Bg7 {[%clk 0:01:25]} 7. O-O {[%clk 0:02:31]}  O-O {[%clk 0:01:25]} 8. d3 {[%clk 0:02:28]}  Nbd7 {[%clk 0:01:24]} 9. Qh4 {[%clk 0:02:13]}  Re8 {[%clk 0:01:15]} 10. Bh6 {[%clk 0:02:12]}  Bh8 {[%clk 0:01:14]} 11. Nc3 {[%clk 0:02:11]}  Qa5 {[%clk 0:01:10]} 12. Rab1 {[%clk 0:02:01]}  Nb6 {[%clk 0:01:10]} 13. b4 {[%clk 0:01:51]}  Qh5 {[%clk 0:01:10]} 14. Qxh5 {[%clk 0:01:46]}  Nxh5 {[%clk 0:01:11]} 15. Rfc1 {[%clk 0:01:45]}  a6 {[%clk 0:01:04]} 16. Be3 {[%clk 0:01:25]}  Bxc3 {[%clk 0:00:58]} 17. Bxb6 {[%clk 0:01:25]}  Bg7 {[%clk 0:00:56]} 18. a4 {[%clk 0:01:23]}  Bd7 {[%clk 0:00:48]} 19. Nd2 {[%clk 0:01:23]}  Nf6 {[%clk 0:00:46]} 20. e4 {[%clk 0:01:03]}  Be6 {[%clk 0:00:32]} 21. Nb3 {[%clk 0:00:56]}  Nd7 {[%clk 0:00:31]} 22. Be3 {[%clk 0:00:56]}  Rec8 {[%clk 0:00:20]} 23. f4 {[%clk 0:00:41]}  f5 {[%clk 0:00:19]} 24. Na5 {[%clk 0:00:41]}  Ba2 {[%clk 0:00:17]} 25. e5 {[%clk 0:00:38]}  Bxb1 {[%clk 0:00:17]} 26. Rxb1 {[%clk 0:00:39]}  Rc7 {[%clk 0:00:15]} 27. d4 {[%clk 0:00:37]}  e6 {[%clk 0:00:15]} 28. Nc4 {[%clk 0:00:37]}  Bf8 {[%clk 0:00:14]} 29. a5 {[%clk 0:00:31]}  Be7 {[%clk 0:00:13]} 30. Kf2 {[%clk 0:00:31]}  Rd8 {[%clk 0:00:11]} 31. Bf3 {[%clk 0:00:31]}  Rcc8 {[%clk 0:00:11]} 32. h3 {[%clk 0:00:31]}  Kf7 {[%clk 0:00:11]} 33. Ke2 {[%clk 0:00:30]}  Nf8 {[%clk 0:00:09]} 34. Nb6 {[%clk 0:00:29]}  Rb8 {[%clk 0:00:07]} 35. g4 {[%clk 0:00:26]}  Re8 {[%clk 0:00:07]} 36. Kd3 {[%clk 0:00:25]}  Bd8 {[%clk 0:00:07]} 37. Nc4 {[%clk 0:00:25]}  Bc7 {[%clk 0:00:08]} 38. Rg1 {[%clk 0:00:24]}  Rbd8 {[%clk 0:00:07]} 39. Kc3 {[%clk 0:00:24]}  Rd7 {[%clk 0:00:06]} 40. g5 {[%clk 0:00:22]}  Red8 {[%clk 0:00:05]} 41. h4 {[%clk 0:00:23]}  Rb8 {[%clk 0:00:04]} 42. Ra1 {[%clk 0:00:22]}  Rdd8 {[%clk 0:00:04]} 43. h5 {[%clk 0:00:22]}  Nd7 {[%clk 0:00:03]} 44. Rh1 {[%clk 0:00:21]}  Kg7 {[%clk 0:00:03]} 45. h6+ {[%clk 0:00:19]}  Kf7 {[%clk 0:00:03]} 46. Ra1 {[%clk 0:00:19]}  Ke7 {[%clk 0:00:04]} 47. Bg2 {[%clk 0:00:19]}  Rdc8 {[%clk 0:00:04]} 48. Kd3 {[%clk 0:00:18]}  Nf8 {[%clk 0:00:04]} 49. Bf3 {[%clk 0:00:18]}  Nd7 {[%clk 0:00:04]} 50. Bg2 {[%clk 0:00:19]}  Bd8 {[%clk 0:00:04]} 51. Nd6 {[%clk 0:00:19]}  Rc7 {[%clk 0:00:05]} 52. Bf3 {[%clk 0:00:18]}  Nf8 {[%clk 0:00:05]} 53. Nc4 {[%clk 0:00:17]}  Rd7 {[%clk 0:00:05]} 54. Kc3 {[%clk 0:00:17]}  Bc7 {[%clk 0:00:05]} 55. Bg2 {[%clk 0:00:17]}  Rbd8 {[%clk 0:00:05]} 56. Nd2 {[%clk 0:00:17]}  Bb8 {[%clk 0:00:04]} 57. Nb3 {[%clk 0:00:18]}  Ba7 {[%clk 0:00:05]} 58. Rd1 {[%clk 0:00:18]}  Rc8 {[%clk 0:00:04]} 59. Kc4 {[%clk 0:00:19]}  Rdd8 {[%clk 0:00:03]} 60. Bf3 {[%clk 0:00:19]}  b6 {[%clk 0:00:03]} 61. axb6 {[%clk 0:00:19]}  Bxb6 {[%clk 0:00:04]} 62. Ra1 {[%clk 0:00:20]}  Nd7 {[%clk 0:00:02]} 63. Rxa6 {[%clk 0:00:15]}  Rb8 {[%clk 0:00:02]} 64. Bxc6 {[%clk 0:00:14]}  Rdc8 {[%clk 0:00:03]} 65. b5 {[%clk 0:00:15]}  Bd8 {[%clk 0:00:04]} 66. Ra7 {[%clk 0:00:07]}  Rc7 {[%clk 0:00:04]} 67. Rxc7 {[%clk 0:00:07]}  Bxc7 {[%clk 0:00:05]} 68. Bxd7 {[%clk 0:00:07]}  Kxd7 {[%clk 0:00:05]} 69. Nc5+ {[%clk 0:00:08]}  Ke7 {[%clk 0:00:06]} 70. Na6 {[%clk 0:00:08]}  Rc8 {[%clk 0:00:06]} 71. Nc5 {[%clk 0:00:05]}  Ba5 {[%clk 0:00:04]} 72. d5 {[%clk 0:00:05]}  exd5+ {[%clk 0:00:04]} 73. Kxd5 {[%clk 0:00:06]}  Bb6 {[%clk 0:00:05]} 74. Bd4 {[%clk 0:00:06]}  Rd8+ {[%clk 0:00:04]} 75. Kc4 {[%clk 0:00:06]}  Rc8 {[%clk 0:00:04]} 76. Kd5 {[%clk 0:00:07]}  Rd8+ {[%clk 0:00:05]} 77. Kc4 {[%clk 0:00:07]}  Rc8 {[%clk 0:00:05]} 78. Kd5 {[%clk 0:00:08]} 1/2-1/2


[Site "https://www.chess.com"]

[Event "Titled Tuesday Blitz January 31 Early 2023"]
[White "Fiorito, Joaquin"]
[Black "Galchenko, Matvey"]
[WhiteFideId "180173"]
[BlackFideId "24175480"]
[WhiteElo "2405"]
[BlackElo "2438"]
[Result "0-1"]
[Round "05"]
[TimeControl "180+2"]
[Date "2023.01.31"]
[WhiteClock "0:00:10"]
[BlackClock "0:00:05"]

1. d4 {[%clk 0:03:00]}  Nf6 {[%clk 0:02:48]} 2. Nc3 {[%clk 0:03:01]}  d5 {[%clk 0:02:47]} 3. Bf4 {[%clk 0:03:01]}  a6 {[%clk 0:02:47]} 4. e3 {[%clk 0:03:00]}  b5 {[%clk 0:02:47]} 5. Nf3 {[%clk 0:02:54]}  Bb7 {[%clk 0:02:44]} 6. Ne5 {[%clk 0:02:53]}  Nbd7 {[%clk 0:02:45]} 7. a4 {[%clk 0:02:47]}  b4 {[%clk 0:02:44]} 8. Nb1 {[%clk 0:02:47]}  e6 {[%clk 0:02:44]} 9. Nd2 {[%clk 0:02:47]}  c5 {[%clk 0:02:43]} 10. c3 {[%clk 0:02:45]}  Nxe5 {[%clk 0:02:44]} 11. Bxe5 {[%clk 0:02:44]}  Nd7 {[%clk 0:02:43]} 12. Bg3 {[%clk 0:02:44]}  bxc3 {[%clk 0:02:31]} 13. bxc3 {[%clk 0:02:44]}  Qa5 {[%clk 0:02:32]} 14. Qb3 {[%clk 0:02:04]}  Bc6 {[%clk 0:02:30]} 15. Be2 {[%clk 0:02:04]}  cxd4 {[%clk 0:02:22]} 16. exd4 {[%clk 0:02:04]}  Be7 {[%clk 0:02:20]} 17. O-O {[%clk 0:02:04]}  O-O {[%clk 0:02:19]} 18. Rfb1 {[%clk 0:02:03]}  Rfc8 {[%clk 0:02:13]} 19. Bd3 {[%clk 0:02:01]}  Nf6 {[%clk 0:02:04]} 20. Qc2 {[%clk 0:01:28]}  Bd7 {[%clk 0:01:58]} 21. c4 {[%clk 0:01:23]}  dxc4 {[%clk 0:01:52]} 22. Nxc4 {[%clk 0:01:23]}  Qg5 {[%clk 0:01:08]} 23. Qe2 {[%clk 0:01:21]}  Nd5 {[%clk 0:01:06]} 24. Ne5 {[%clk 0:01:07]}  Be8 {[%clk 0:00:55]} 25. Nf3 {[%clk 0:00:41]}  Qh5 {[%clk 0:00:46]} 26. Qd2 {[%clk 0:00:37]}  a5 {[%clk 0:00:39]} 27. Rb7 {[%clk 0:00:26]}  Bb4 {[%clk 0:00:39]} 28. Qe2 {[%clk 0:00:19]}  Bc6 {[%clk 0:00:37]} 29. Rb5 {[%clk 0:00:16]}  Bxb5 {[%clk 0:00:34]} 30. axb5 {[%clk 0:00:17]}  a4 {[%clk 0:00:30]} 31. Rb1 {[%clk 0:00:16]}  Nc3 {[%clk 0:00:27]} 32. Qc2 {[%clk 0:00:13]}  Nxb1 {[%clk 0:00:25]} 33. Qxb1 {[%clk 0:00:14]}  Ba3 {[%clk 0:00:22]} 34. Bf1 {[%clk 0:00:13]}  Rc1 {[%clk 0:00:19]} 35. Qa2 {[%clk 0:00:14]}  Be7 {[%clk 0:00:17]} 36. b6 {[%clk 0:00:14]}  Qb5 {[%clk 0:00:13]} 37. Nd2 {[%clk 0:00:13]}  Qxb6 {[%clk 0:00:13]} 38. h4 {[%clk 0:00:12]}  Qxd4 {[%clk 0:00:13]} 39. Kh2 {[%clk 0:00:12]}  Ra1 {[%clk 0:00:08]} 40. Qc2 {[%clk 0:00:11]}  Rd8 {[%clk 0:00:05]} 41. Nf3 {[%clk 0:00:11]}  Qd1 {[%clk 0:00:05]} 42. Qc4 {[%clk 0:00:11]}  Qxf1 {[%clk 0:00:05]} 43. Qc7 {[%clk 0:00:10]}  Qh1# {[%clk 0:00:05]} 0-1


[Site "https://www.chess.com"]